[Event "Titled Tuesday Blitz April 18 Late 2023"]
[White "Georg, Heinz"]
[Black "Skaric, Djuro"]
[WhiteFideId "4607295"]
[BlackFideId "934569"]
[WhiteElo "2261"]
[BlackElo "2282"]
[Result "1-0"]
[Round "11"]
[TimeControl "180+2"]
[Date "2023.04.18"]
[WhiteClock "0:00:16"]
[BlackClock "0:00:24"]

1. b4 {[%clk 0:03:00]}  d6 {[%clk 0:03:00]} 2. Bb2 {[%clk 0:03:00]}  Nf6 {[%clk 0:02:59]} 3. e3 {[%clk 0:03:00]}  g6 {[%clk 0:02:59]} 4. Nf3 {[%clk 0:03:00]}  Bg7 {[%clk 0:02:59]} 5. d4 {[%clk 0:03:01]}  O-O {[%clk 0:02:59]} 6. Nbd2 {[%clk 0:03:01]}  Nc6 {[%clk 0:02:59]} 7. b5 {[%clk 0:03:01]}  Nb8 {[%clk 0:02:57]} 8. c4 {[%clk 0:03:01]}  Nbd7 {[%clk 0:02:58]} 9. Qc2 {[%clk 0:02:59]}  h6 {[%clk 0:02:57]} 10. c5 {[%clk 0:02:48]}  Re8 {[%clk 0:02:54]} 11. Bc4 {[%clk 0:02:41]}  e5 {[%clk 0:02:52]} 12. Qxg6 {[%clk 0:02:41]}  Qe7 {[%clk 0:02:46]} 13. cxd6 {[%clk 0:02:35]}  cxd6 {[%clk 0:02:46]} 14. dxe5 {[%clk 0:02:32]}  Nxe5 {[%clk 0:02:44]} 15. Nxe5 {[%clk 0:02:25]}  dxe5 {[%clk 0:02:43]} 16. O-O {[%clk 0:02:22]}  Bd7 {[%clk 0:02:39]} 17. Qc2 {[%clk 0:02:14]}  Rac8 {[%clk 0:02:37]} 18. Qb3 {[%clk 0:02:14]}  b6 {[%clk 0:02:31]} 19. Nf3 {[%clk 0:02:14]}  Nh7 {[%clk 0:02:27]} 20. Ba3 {[%clk 0:02:11]}  Qf6 {[%clk 0:02:25]} 21. Rad1 {[%clk 0:02:06]}  Bg4 {[%clk 0:02:25]} 22. Rd6 {[%clk 0:02:02]}  Be6 {[%clk 0:02:17]} 23. Bxe6 {[%clk 0:01:54]}  Rxe6 {[%clk 0:02:16]} 24. Rxe6 {[%clk 0:01:52]}  fxe6 {[%clk 0:02:15]} 25. Bb2 {[%clk 0:01:46]}  Rc5 {[%clk 0:02:00]} 26. Rd1 {[%clk 0:01:40]}  Nf8 {[%clk 0:01:57]} 27. h3 {[%clk 0:01:33]}  Qf5 {[%clk 0:01:52]} 28. e4 {[%clk 0:01:29]}  Qh5 {[%clk 0:01:45]} 29. Rd8 {[%clk 0:01:24]}  Qf7 {[%clk 0:01:35]} 30. Ba3 {[%clk 0:01:18]}  Rc7 {[%clk 0:01:30]} 31. Bd6 {[%clk 0:01:16]}  Rd7 {[%clk 0:01:25]} 32. Rxd7 {[%clk 0:01:10]}  Nxd7 {[%clk 0:01:22]} 33. Qc3 {[%clk 0:01:08]}  Bf8 {[%clk 0:01:00]} 34. Bxe5 {[%clk 0:01:05]}  Bc5 {[%clk 0:00:59]} 35. Bd4 {[%clk 0:00:57]}  Bd6 {[%clk 0:00:56]} 36. Qc8+ {[%clk 0:00:52]}  Kh7 {[%clk 0:00:54]} 37. Qh8+ {[%clk 0:00:51]}  Kg6 {[%clk 0:00:54]} 38. Be3 {[%clk 0:00:38]}  Bf8 {[%clk 0:00:44]} 39. Ne5+ {[%clk 0:00:23]}  Nxe5 {[%clk 0:00:40]} 40. Qxe5 {[%clk 0:00:24]}  Bg7 {[%clk 0:00:40]} 41. Qg3+ {[%clk 0:00:23]}  Kh7 {[%clk 0:00:40]} 42. Qf4 {[%clk 0:00:22]}  Qg6 {[%clk 0:00:35]} 43. h4 {[%clk 0:00:20]}  Bf6 {[%clk 0:00:34]} 44. h5 {[%clk 0:00:19]}  Qg7 {[%clk 0:00:33]} 45. Qg3 {[%clk 0:00:17]}  Qf7 {[%clk 0:00:32]} 46. e5 {[%clk 0:00:16]}  Bg7 {[%clk 0:00:31]} 47. Qg4 {[%clk 0:00:16]}  Kg8 {[%clk 0:00:28]} 48. Bxh6 {[%clk 0:00:14]}  Kh7 {[%clk 0:00:23]} 49. Qxg7+ {[%clk 0:00:14]}  Qxg7 {[%clk 0:00:23]} 50. Bxg7 {[%clk 0:00:15]}  Kxg7 {[%clk 0:00:24]} 51. g4 {[%clk 0:00:16]}  Kh6 {[%clk 0:00:24]} 52. f4 {[%clk 0:00:16]} 1-0


[Site "https://www.chess.com"]

[Event "Titled Tuesday Blitz April 18 Late 2023"]
[White "Mihajlovskij"]
[Black "Dubreuil, Julien"]
[BlackFideId "621285"]
[WhiteElo "2295"]
[BlackElo "2196"]
[Result "0-1"]
[Round "11"]
[TimeControl "180+2"]
[Date "2023.04.18"]
[WhiteClock "0:02:33"]
[BlackClock "0:02:43"]

1. e4 {[%clk 0:03:00]}  e5 {[%clk 0:02:59]} 2. d4 {[%clk 0:02:58]}  exd4 {[%clk 0:02:59]} 3. Qxd4 {[%clk 0:02:59]}  Nc6 {[%clk 0:02:58]} 4. Qe3 {[%clk 0:03:00]}  Nf6 {[%clk 0:02:59]} 5. Be2 {[%clk 0:03:00]}  Be7 {[%clk 0:02:58]} 6. e5 {[%clk 0:03:00]}  Nd5 {[%clk 0:02:54]} 7. Qg3 {[%clk 0:02:58]}  Kf8 {[%clk 0:02:53]} 8. a3 {[%clk 0:02:48]}  d6 {[%clk 0:02:53]} 9. c4 {[%clk 0:02:48]}  Nb6 {[%clk 0:02:48]} 10. Nf3 {[%clk 0:02:43]}  dxe5 {[%clk 0:02:46]} 11. Nxe5 {[%clk 0:02:42]}  Nd4 {[%clk 0:02:44]} 12. O-O {[%clk 0:02:33]}  Nxe2+ {[%clk 0:02:43]} 0-1


[Site "https://www.chess.com"]

[Event "Titled Tuesday Blitz April 18 Late 2023"]
[White "Kohler, Aran"]
[Black "Kovacevic, Radmila"]
[WhiteFideId "1002856"]
[BlackFideId "933171"]
[WhiteElo "2260"]
[BlackElo "2194"]
[Result "0-1"]
[Round "11"]
[TimeControl "180+2"]
[Date "2023.04.18"]
[WhiteClock "0:00:20"]
[BlackClock "0:00:38"]

1. e4 {[%clk 0:03:00]}  e5 {[%clk 0:03:00]} 2. Nf3 {[%clk 0:02:59]}  d5 {[%clk 0:03:00]} 3. Nxe5 {[%clk 0:02:50]}  Bd6 {[%clk 0:02:58]} 4. d4 {[%clk 0:02:47]}  dxe4 {[%clk 0:02:59]} 5. Nc4 {[%clk 0:02:31]}  Be7 {[%clk 0:02:57]} 6. Nc3 {[%clk 0:02:28]}  Nf6 {[%clk 0:02:58]} 7. Ne3 {[%clk 0:02:27]}  O-O {[%clk 0:02:59]} 8. Be2 {[%clk 0:02:27]}  c6 {[%clk 0:02:59]} 9. O-O {[%clk 0:02:26]}  Re8 {[%clk 0:02:57]} 10. h3 {[%clk 0:02:22]}  b5 {[%clk 0:02:54]} 11. a3 {[%clk 0:02:22]}  Bb7 {[%clk 0:02:50]} 12. Ng4 {[%clk 0:02:21]}  a5 {[%clk 0:02:42]} 13. Nxf6+ {[%clk 0:02:11]}  Bxf6 {[%clk 0:02:43]} 14. Be3 {[%clk 0:02:11]}  Nd7 {[%clk 0:02:12]} 15. d5 {[%clk 0:01:56]}  b4 {[%clk 0:02:02]} 16. dxc6 {[%clk 0:01:46]}  Bxc6 {[%clk 0:01:57]} 17. axb4 {[%clk 0:01:37]}  axb4 {[%clk 0:01:55]} 18. Rxa8 {[%clk 0:01:37]}  Qxa8 {[%clk 0:01:55]} 19. Nb1 {[%clk 0:01:36]}  Bxb2 {[%clk 0:01:53]} 20. Qd6 {[%clk 0:01:36]}  Qa4 {[%clk 0:01:33]} 21. Nd2 {[%clk 0:01:32]}  Be5 {[%clk 0:01:23]} 22. Nxe4 {[%clk 0:01:17]}  Bxd6 {[%clk 0:01:18]} 23. Nxd6 {[%clk 0:01:17]}  Re6 {[%clk 0:01:08]} 24. Nc4 {[%clk 0:00:55]}  Qxc2 {[%clk 0:01:06]} 25. Re1 {[%clk 0:00:48]}  b3 {[%clk 0:00:56]} 26. Bg4 {[%clk 0:00:42]}  f5 {[%clk 0:00:48]} 27. Be2 {[%clk 0:00:23]}  b2 {[%clk 0:00:41]} 28. Na3 {[%clk 0:00:23]}  Qc3 {[%clk 0:00:39]} 29. Bc4 {[%clk 0:00:20]}  Qxe1+ {[%clk 0:00:38]} 0-1


[Site "https://www.chess.com"]

[Event "Titled Tuesday Blitz April 18 Late 2023"]
[White "Vaglio Munoz, Jaime"]
[Black "Vargas Rodriguez, Wilver"]
[WhiteFideId "6500145"]
[BlackFideId "3509672"]
[WhiteElo "2199"]
[BlackElo "2224"]
[Result "1-0"]
[Round "11"]
[TimeControl "180+2"]
[Date "2023.04.18"]
[WhiteClock "0:01:21"]
[BlackClock "0:00:01"]

1. e4 {[%clk 0:03:00]}  c5 {[%clk 0:02:59]} 2. a3 {[%clk 0:03:00]}  d5 {[%clk 0:02:40]} 3. exd5 {[%clk 0:02:59]}  Qxd5 {[%clk 0:02:41]} 4. Nc3 {[%clk 0:02:59]}  Qd8 {[%clk 0:02:33]} 5. g3 {[%clk 0:02:59]}  Bd7 {[%clk 0:02:29]} 6. Bg2 {[%clk 0:02:59]}  Bc6 {[%clk 0:02:30]} 7. Nf3 {[%clk 0:02:54]}  Nf6 {[%clk 0:02:18]} 8. b4 {[%clk 0:02:53]}  e6 {[%clk 0:02:18]} 9. b5 {[%clk 0:02:51]}  Bd5 {[%clk 0:02:12]} 10. O-O {[%clk 0:02:46]}  Be7 {[%clk 0:02:11]} 11. Re1 {[%clk 0:02:45]}  O-O {[%clk 0:02:10]} 12. Bb2 {[%clk 0:02:38]}  Nbd7 {[%clk 0:02:01]} 13. d3 {[%clk 0:02:32]}  a6 {[%clk 0:01:55]} 14. a4 {[%clk 0:02:30]}  axb5 {[%clk 0:01:51]} 15. axb5 {[%clk 0:02:30]}  b6 {[%clk 0:01:47]} 16. Nxd5 {[%clk 0:02:28]}  Nxd5 {[%clk 0:01:33]} 17. c4 {[%clk 0:02:23]}  Rxa1 {[%clk 0:01:30]} 18. Qxa1 {[%clk 0:02:22]}  Nb4 {[%clk 0:01:21]} 19. Rd1 {[%clk 0:02:16]}  Bf6 {[%clk 0:01:18]} 20. d4 {[%clk 0:02:11]}  Nc2 {[%clk 0:01:17]} 21. Qa7 {[%clk 0:02:05]}  cxd4 {[%clk 0:00:59]} 22. Rd2 {[%clk 0:01:38]}  d3 {[%clk 0:00:05]} 23. Rxd3 {[%clk 0:01:25]}  Bxb2 {[%clk 0:00:04]} 24. Rxd7 {[%clk 0:01:24]}  Qa8 {[%clk 0:00:02]} 25. Ng5 {[%clk 0:01:21]}  Qxa7 {[%clk 0:00:02]} 26. Rxa7 {[%clk 0:01:22]}  Bd4 {[%clk 0:00:01]} 27. Ne4 {[%clk 0:01:21]} 1-0


[Site "https://www.chess.com"]

[Event "Titled Tuesday Blitz April 18 Late 2023"]
[White "De Souza, Cristiano Gomes"]
[Black "Bogaudinov, Rushan"]
[WhiteFideId "2151758"]
[BlackFideId "4129288"]
[WhiteElo "2068"]
[BlackElo "1967"]
[Result "0-1"]
[Round "11"]
[TimeControl "180+2"]
[Date "2023.04.18"]
[WhiteClock "0:01:12"]
[BlackClock "0:00:43"]

1. d4 {[%clk 0:03:00]}  h5 {[%clk 0:02:17]} 2. Nf3 {[%clk 0:02:57]}  h4 {[%clk 0:02:17]} 3. h3 {[%clk 0:02:57]}  b6 {[%clk 0:02:17]} 4. Bg5 {[%clk 0:02:56]}  c5 {[%clk 0:02:15]} 5. Bxh4 {[%clk 0:02:54]}  cxd4 {[%clk 0:02:15]} 6. Qxd4 {[%clk 0:02:52]}  Bb7 {[%clk 0:02:15]} 7. Bg3 {[%clk 0:02:51]}  Nc6 {[%clk 0:02:15]} 8. Qd2 {[%clk 0:02:51]}  d5 {[%clk 0:02:15]} 9. e3 {[%clk 0:02:50]}  Nf6 {[%clk 0:02:15]} 10. Nc3 {[%clk 0:02:49]}  e6 {[%clk 0:02:12]} 11. Bb5 {[%clk 0:02:48]}  Bb4 {[%clk 0:02:11]} 12. Ne5 {[%clk 0:02:42]}  Rc8 {[%clk 0:02:09]} 13. Nxc6 {[%clk 0:02:40]}  Bxc6 {[%clk 0:02:09]} 14. Bxc6+ {[%clk 0:02:39]}  Rxc6 {[%clk 0:02:10]} 15. f3 {[%clk 0:02:38]}  Qc8 {[%clk 0:02:08]} 16. Be5 {[%clk 0:02:38]}  Rh5 {[%clk 0:02:02]} 17. Bxf6 {[%clk 0:02:33]}  gxf6 {[%clk 0:02:02]} 18. a3 {[%clk 0:02:32]}  Bxc3 {[%clk 0:01:48]} 19. bxc3 {[%clk 0:02:32]}  Rxc3 {[%clk 0:01:49]} 20. O-O {[%clk 0:02:30]}  Rxc2 {[%clk 0:01:47]} 21. Rac1 {[%clk 0:02:19]}  Rxd2 {[%clk 0:01:43]} 22. Rxc8+ {[%clk 0:02:19]}  Kd7 {[%clk 0:01:41]} 23. Ra8 {[%clk 0:02:19]}  e5 {[%clk 0:01:33]} 24. Rxa7+ {[%clk 0:02:18]}  Ke6 {[%clk 0:01:33]} 25. Rc1 {[%clk 0:02:18]}  Rg5 {[%clk 0:01:29]} 26. g4 {[%clk 0:02:13]}  d4 {[%clk 0:01:16]} 27. e4 {[%clk 0:02:12]}  Kd6 {[%clk 0:01:16]} 28. Rac7 {[%clk 0:02:07]}  Rd1+ {[%clk 0:01:10]} 29. Kf2 {[%clk 0:02:01]}  Rxc1 {[%clk 0:01:10]} 30. Rxc1 {[%clk 0:02:01]}  Rg8 {[%clk 0:01:10]} 31. h4 {[%clk 0:01:58]}  Ra8 {[%clk 0:01:09]} 32. Rb1 {[%clk 0:01:58]}  Kc5 {[%clk 0:01:09]} 33. Rb3 {[%clk 0:01:57]}  Kc4 {[%clk 0:01:03]} 34. Rxb6 {[%clk 0:01:56]}  Rxa3 {[%clk 0:01:03]} 35. Rxf6 {[%clk 0:01:56]}  Ra2+ {[%clk 0:01:03]} 36. Kg3 {[%clk 0:01:56]}  d3 {[%clk 0:01:02]} 37. Rc6+ {[%clk 0:01:55]}  Kd4 {[%clk 0:01:02]} 38. Rd6+ {[%clk 0:01:54]}  Ke3 {[%clk 0:01:02]} 39. h5 {[%clk 0:01:50]}  Ra4 {[%clk 0:01:01]} 40. h6 {[%clk 0:01:47]}  Rd4 {[%clk 0:01:00]} 41. Rxd4 {[%clk 0:01:46]}  exd4 {[%clk 0:01:01]} 42. h7 {[%clk 0:01:46]}  d2 {[%clk 0:01:01]} 43. h8=Q {[%clk 0:01:43]}  d1=Q {[%clk 0:01:01]} 44. Qh6+ {[%clk 0:01:42]}  Ke2 {[%clk 0:01:00]} 45. Qa6+ {[%clk 0:01:38]}  d3 {[%clk 0:00:59]} 46. g5 {[%clk 0:01:29]}  Qf1 {[%clk 0:00:48]} 47. Qa2+ {[%clk 0:01:20]}  d2 {[%clk 0:00:46]} 48. Qc4+ {[%clk 0:01:20]}  Ke1 {[%clk 0:00:46]} 49. Qxf1+ {[%clk 0:01:16]}  Kxf1 {[%clk 0:00:45]} 50. Kf4 {[%clk 0:01:15]}  d1=Q {[%clk 0:00:45]} 51. Ke5 {[%clk 0:01:14]}  Qxf3 {[%clk 0:00:44]} 52. g6 {[%clk 0:01:12]}  fxg6 {[%clk 0:00:43]} 0-1


[Site "https://www.chess.com"]

[Event "Titled Tuesday Blitz April 18 Late 2023"]
[White "Manfroi, Alexander Giannini"]
[Black "Buchenau, Frank"]
[WhiteFideId "22739335"]
[BlackFideId "4604350"]
[WhiteElo "1618"]
[BlackElo "2157"]
[Result "1-0"]
[Round "11"]
[TimeControl "180+2"]
[Date "2023.04.18"]
[WhiteClock "0:02:29"]
[BlackClock "0:01:31"]

1. d4 {[%clk 0:03:00]}  e6 {[%clk 0:02:59]} 2. Bf4 {[%clk 0:03:00]}  Nf6 {[%clk 0:02:59]} 3. e3 {[%clk 0:03:00]}  d5 {[%clk 0:02:59]} 4. Nf3 {[%clk 0:03:01]}  c5 {[%clk 0:02:59]} 5. c3 {[%clk 0:03:01]}  Nc6 {[%clk 0:02:59]} 6. Bd3 {[%clk 0:03:01]}  Bd6 {[%clk 0:02:58]} 7. Bg3 {[%clk 0:03:01]}  O-O {[%clk 0:02:56]} 8. Nbd2 {[%clk 0:03:01]}  b6 {[%clk 0:02:56]} 9. Ne5 {[%clk 0:03:01]}  Ne7 {[%clk 0:02:43]} 10. f4 {[%clk 0:03:00]}  Nf5 {[%clk 0:02:38]} 11. Bf2 {[%clk 0:02:59]}  Bc7 {[%clk 0:02:19]} 12. g4 {[%clk 0:02:59]}  Nd6 {[%clk 0:02:19]} 13. Bh4 {[%clk 0:02:49]}  a5 {[%clk 0:02:15]} 14. Nc6 {[%clk 0:02:38]}  Qe8 {[%clk 0:02:12]} 15. Bxf6 {[%clk 0:02:38]}  gxf6 {[%clk 0:02:07]} 16. g5 {[%clk 0:02:29]}  Qxc6 {[%clk 0:01:44]} 17. Bxh7+ {[%clk 0:02:28]}  Kg7 {[%clk 0:01:31]} 18. Qh5 {[%clk 0:02:29]} 1-0


[Site "https://www.chess.com"]

[Event "Titled Tuesday Blitz April 18 Late 2023"]
[White "Romero Ruscalleda, Josep"]
[Black "Vargas, Mauricio"]
[WhiteFideId "2231859"]
[BlackFideId "4404572"]
[WhiteElo "2183"]
[BlackElo "1998"]
[Result "1-0"]
[Round "11"]
[TimeControl "180+2"]
[Date "2023.04.18"]
[WhiteClock "0:02:03"]
[BlackClock "0:00:04"]

1. e4 {[%clk 0:03:00]}  c6 {[%clk 0:00:42]} 2. Nc3 {[%clk 0:02:59]}  d5 {[%clk 0:00:43]} 3. Nf3 {[%clk 0:02:59]}  dxe4 {[%clk 0:00:43]} 4. Nxe4 {[%clk 0:02:59]}  Nf6 {[%clk 0:00:44]} 5. Qe2 {[%clk 0:02:58]}  Nxe4 {[%clk 0:00:44]} 6. Qxe4 {[%clk 0:02:59]}  Qd5 {[%clk 0:00:45]} 7. Qf4 {[%clk 0:02:58]}  Qf5 {[%clk 0:00:43]} 8. Qe3 {[%clk 0:02:53]}  Qe6 {[%clk 0:00:41]} 9. d4 {[%clk 0:02:47]}  g6 {[%clk 0:00:32]} 10. Bd3 {[%clk 0:02:45]}  Bg7 {[%clk 0:00:29]} 11. O-O {[%clk 0:02:45]}  O-O {[%clk 0:00:21]} 12. Qf4 {[%clk 0:02:37]}  Qg4 {[%clk 0:00:17]} 13. c3 {[%clk 0:02:32]}  Qxf4 {[%clk 0:00:16]} 14. Bxf4 {[%clk 0:02:31]}  Bg4 {[%clk 0:00:16]} 15. Ne5 {[%clk 0:02:29]}  Be6 {[%clk 0:00:14]} 16. Rfe1 {[%clk 0:02:27]}  Nd7 {[%clk 0:00:14]} 17. Nxd7 {[%clk 0:02:23]}  Bxd7 {[%clk 0:00:14]} 18. Rxe7 {[%clk 0:02:23]}  Rad8 {[%clk 0:00:11]} 19. Bc7 {[%clk 0:02:19]}  Rfe8 {[%clk 0:00:09]} 20. Bxd8 {[%clk 0:02:18]}  Rxd8 {[%clk 0:00:09]} 21. Rae1 {[%clk 0:02:13]}  b5 {[%clk 0:00:09]} 22. Bc2 {[%clk 0:02:10]}  Bf6 {[%clk 0:00:09]} 23. R7e2 {[%clk 0:02:07]}  Be6 {[%clk 0:00:08]} 24. Bb3 {[%clk 0:02:06]}  Bg4 {[%clk 0:00:06]} 25. Re8+ {[%clk 0:02:05]}  Rxe8 {[%clk 0:00:03]} 26. Rxe8+ {[%clk 0:02:04]}  Kg7 {[%clk 0:00:04]} 27. f3 {[%clk 0:02:04]}  Bd7 {[%clk 0:00:04]} 28. Ra8 {[%clk 0:02:03]} 1-0


[Site "https://www.chess.com"]

[Event "Titled Tuesday Blitz April 18 Late 2023"]
[White "Garmash, Aliona"]
[Black "Mikheev, Stanislav"]
[WhiteFideId "34127620"]
[BlackFideId "4135920"]
[WhiteElo "1959"]
[BlackElo "2230"]
[Result "1/2-1/2"]
[Round "11"]
[TimeControl "180+2"]
[Date "2023.04.18"]
[WhiteClock "0:00:09"]
[BlackClock "0:00:43"]

1. d4 {[%clk 0:03:00]}  Nf6 {[%clk 0:02:57]} 2. c4 {[%clk 0:03:00]}  g6 {[%clk 0:02:57]} 3. Nc3 {[%clk 0:03:00]}  d5 {[%clk 0:02:58]} 4. cxd5 {[%clk 0:03:00]}  Nxd5 {[%clk 0:02:58]} 5. e4 {[%clk 0:03:00]}  Nxc3 {[%clk 0:02:59]} 6. bxc3 {[%clk 0:03:01]}  Bg7 {[%clk 0:03:00]} 7. Bc4 {[%clk 0:03:01]}  c5 {[%clk 0:03:00]} 8. Ne2 {[%clk 0:03:01]}  Nc6 {[%clk 0:03:00]} 9. Be3 {[%clk 0:03:01]}  O-O {[%clk 0:03:00]} 10. O-O {[%clk 0:03:00]}  Bd7 {[%clk 0:03:01]} 11. Rb1 {[%clk 0:02:57]}  a6 {[%clk 0:03:00]} 12. Bd3 {[%clk 0:02:35]}  b5 {[%clk 0:02:42]} 13. dxc5 {[%clk 0:02:27]}  Ne5 {[%clk 0:02:39]} 14. Bd4 {[%clk 0:02:10]}  Nxd3 {[%clk 0:02:32]} 15. Qxd3 {[%clk 0:02:09]}  Be6 {[%clk 0:02:31]} 16. Qc2 {[%clk 0:01:53]}  Bc4 {[%clk 0:02:25]} 17. Rfd1 {[%clk 0:01:50]}  Qa5 {[%clk 0:02:13]} 18. Rb2 {[%clk 0:01:45]}  e5 {[%clk 0:01:58]} 19. Be3 {[%clk 0:01:44]}  Rad8 {[%clk 0:01:57]} 20. Rxd8 {[%clk 0:01:20]}  Rxd8 {[%clk 0:01:56]} 21. Nc1 {[%clk 0:01:20]}  Bf8 {[%clk 0:01:34]} 22. Nb3 {[%clk 0:01:13]}  Qa4 {[%clk 0:01:25]} 23. Nd2 {[%clk 0:00:53]}  Qa3 {[%clk 0:01:08]} 24. Nxc4 {[%clk 0:00:45]}  bxc4 {[%clk 0:01:09]} 25. h3 {[%clk 0:00:33]}  Bxc5 {[%clk 0:01:07]} 26. Bxc5 {[%clk 0:00:30]}  Qxc5 {[%clk 0:01:08]} 27. Qa4 {[%clk 0:00:25]}  a5 {[%clk 0:01:01]} 28. Rb5 {[%clk 0:00:22]}  Qc6 {[%clk 0:00:58]} 29. Qxa5 {[%clk 0:00:20]}  Rd1+ {[%clk 0:00:53]} 30. Kh2 {[%clk 0:00:20]}  Qxe4 {[%clk 0:00:53]} 31. Rb8+ {[%clk 0:00:18]}  Kg7 {[%clk 0:00:53]} 32. Qc5 {[%clk 0:00:14]}  Qf4+ {[%clk 0:00:50]} 33. g3 {[%clk 0:00:14]}  Qe4 {[%clk 0:00:49]} 34. Qf8+ {[%clk 0:00:13]}  Kf6 {[%clk 0:00:49]} 35. Rb6+ {[%clk 0:00:13]}  Kg5 {[%clk 0:00:49]} 36. Qe7+ {[%clk 0:00:12]}  Kh5 {[%clk 0:00:49]} 37. g4+ {[%clk 0:00:12]}  Kh6 {[%clk 0:00:48]} 38. Qf8+ {[%clk 0:00:12]}  Kg5 {[%clk 0:00:48]} 39. Qe7+ {[%clk 0:00:11]}  Kh6 {[%clk 0:00:42]} 40. Qh4+ {[%clk 0:00:09]}  Kg7 {[%clk 0:00:42]} 41. Qf6+ {[%clk 0:00:09]}  Kh6 {[%clk 0:00:43]} 42. Qh4+ {[%clk 0:00:09]}  Kg7 {[%clk 0:00:42]} 43. Qf6+ {[%clk 0:00:09]}  Kh6 {[%clk 0:00:43]} 44. Qh4+ {[%clk 0:00:09]} 1/2-1/2


[Site "https://www.chess.com"]

[Event "Titled Tuesday Blitz April 18 Late 2023"]
[White "Kujawski, Adam"]
[Black "Simonovic, Miroslav"]
[WhiteFideId "1100920"]
[BlackFideId "919152"]
[WhiteElo "2054"]
[BlackElo "2042"]
[Result "1-0"]
[Round "11"]
[TimeControl "180+2"]
[Date "2023.04.18"]
[WhiteClock "0:00:04"]
[BlackClock "0:00:07"]

1. e4 {[%clk 0:02:58]}  c5 {[%clk 0:02:59]} 2. Nf3 {[%clk 0:02:57]}  Nc6 {[%clk 0:03:00]} 3. Nc3 {[%clk 0:02:56]}  e5 {[%clk 0:02:59]} 4. Bc4 {[%clk 0:02:55]}  g6 {[%clk 0:02:59]} 5. d3 {[%clk 0:02:51]}  h6 {[%clk 0:02:59]} 6. Be3 {[%clk 0:02:49]}  d6 {[%clk 0:02:59]} 7. Nd5 {[%clk 0:02:49]}  Bg7 {[%clk 0:02:59]} 8. c3 {[%clk 0:02:49]}  Nge7 {[%clk 0:02:59]} 9. a4 {[%clk 0:02:48]}  O-O {[%clk 0:02:58]} 10. Qd2 {[%clk 0:02:48]}  Kh7 {[%clk 0:02:58]} 11. h4 {[%clk 0:02:35]}  f5 {[%clk 0:02:58]} 12. Ng5+ {[%clk 0:02:33]}  Kh8 {[%clk 0:02:51]} 13. h5 {[%clk 0:02:23]}  f4 {[%clk 0:02:36]} 14. Nxf4 {[%clk 0:01:42]}  exf4 {[%clk 0:02:37]} 15. Bxf4 {[%clk 0:01:42]}  d5 {[%clk 0:02:29]} 16. hxg6 {[%clk 0:01:18]}  Nxg6 {[%clk 0:02:07]} 17. Nf7+ {[%clk 0:01:13]}  Rxf7 {[%clk 0:02:06]} 18. Bxh6 {[%clk 0:01:13]}  dxc4 {[%clk 0:01:46]} 19. Bg5+ {[%clk 0:01:04]}  Kg8 {[%clk 0:01:46]} 20. Bxd8 {[%clk 0:01:03]}  Nxd8 {[%clk 0:01:47]} 21. Qg5 {[%clk 0:00:57]}  Ne7 {[%clk 0:01:22]} 22. dxc4 {[%clk 0:00:49]}  Ne6 {[%clk 0:01:21]} 23. Qh5 {[%clk 0:00:48]}  Bd7 {[%clk 0:01:15]} 24. O-O-O {[%clk 0:00:46]}  Bxa4 {[%clk 0:01:08]} 25. Rd5 {[%clk 0:00:36]}  Bc6 {[%clk 0:00:55]} 26. f3 {[%clk 0:00:22]}  Re8 {[%clk 0:00:37]} 27. Qh7+ {[%clk 0:00:21]}  Kf8 {[%clk 0:00:37]} 28. Qh3 {[%clk 0:00:21]}  Nf4 {[%clk 0:00:34]} 29. Qg4 {[%clk 0:00:18]}  Bxd5 {[%clk 0:00:32]} 30. cxd5 {[%clk 0:00:18]}  Nexd5 {[%clk 0:00:30]} 31. exd5 {[%clk 0:00:18]}  Nxd5 {[%clk 0:00:30]} 32. Kb1 {[%clk 0:00:15]}  b6 {[%clk 0:00:29]} 33. Qg5 {[%clk 0:00:12]}  Nf4 {[%clk 0:00:26]} 34. Rd1 {[%clk 0:00:09]}  Kg8 {[%clk 0:00:22]} 35. Rd8 {[%clk 0:00:08]}  Rxd8 {[%clk 0:00:20]} 36. Qxd8+ {[%clk 0:00:09]}  Rf8 {[%clk 0:00:20]} 37. Qd7 {[%clk 0:00:10]}  Rf7 {[%clk 0:00:20]} 38. Qg4 {[%clk 0:00:10]}  Kf8 {[%clk 0:00:13]} 39. g3 {[%clk 0:00:10]}  Ng2 {[%clk 0:00:12]} 40. f4 {[%clk 0:00:09]}  Re7 {[%clk 0:00:10]} 41. Qf5+ {[%clk 0:00:08]}  Ke8 {[%clk 0:00:10]} 42. Qc8+ {[%clk 0:00:07]}  Kf7 {[%clk 0:00:11]} 43. Qf5+ {[%clk 0:00:07]}  Ke8 {[%clk 0:00:11]} 44. Qg6+ {[%clk 0:00:06]}  Kf8 {[%clk 0:00:11]} 45. f5 {[%clk 0:00:06]}  Rf7 {[%clk 0:00:10]} 46. Qd6+ {[%clk 0:00:06]}  Kg8 {[%clk 0:00:10]} 47. g4 {[%clk 0:00:05]}  Nh4 {[%clk 0:00:09]} 48. Qd8+ {[%clk 0:00:05]}  Bf8 {[%clk 0:00:07]} 49. Qxh4 {[%clk 0:00:06]}  Be7 {[%clk 0:00:06]} 50. Qh5 {[%clk 0:00:06]}  Rg7 {[%clk 0:00:05]} 51. Ka2 {[%clk 0:00:04]}  Bg5 {[%clk 0:00:04]} 52. Qe8+ {[%clk 0:00:04]}  Kh7 {[%clk 0:00:04]} 53. Qe6 {[%clk 0:00:04]}  Bh6 {[%clk 0:00:03]} 54. f6 {[%clk 0:00:03]}  Rg6 {[%clk 0:00:03]} 55. Qf7+ {[%clk 0:00:03]}  Bg7 {[%clk 0:00:03]} 56. fxg7 {[%clk 0:00:03]}  Rxg7 {[%clk 0:00:04]} 57. Qh5+ {[%clk 0:00:03]}  Kg8 {[%clk 0:00:05]} 58. g5 {[%clk 0:00:04]}  Kf8 {[%clk 0:00:05]} 59. Qf3+ {[%clk 0:00:04]}  Kg8 {[%clk 0:00:05]} 60. Qf5 {[%clk 0:00:04]}  Kh8 {[%clk 0:00:05]} 61. g6 {[%clk 0:00:04]}  Kg8 {[%clk 0:00:06]} 62. Qh5 {[%clk 0:00:03]}  Kf8 {[%clk 0:00:06]} 63. Qf5+ {[%clk 0:00:03]}  Ke7 {[%clk 0:00:07]} 64. Qe5+ {[%clk 0:00:04]}  Kf8 {[%clk 0:00:07]} 65. Qf6+ {[%clk 0:00:04]}  Kg8 {[%clk 0:00:07]} 66. Qd8# {[%clk 0:00:04]} 1-0


[Site "https://www.chess.com"]